Cogmind - Beta 12 @@@ ROGUE MODE // 2023.06.07 @ 21:40:08 Player: Michael Result: Destroyed by H-66 Slayer with Gauss Rifle Performance ------------- Evolutions (4) 2000 Regions Visited (10) 2000 Robots Destroyed (129) 645 Value Destroyed (4577) 4577 Prototype IDs (4) 80 Alien Tech Used (0) 0 Bonus (1192) 1192 TOTAL SCORE: 10494 Bonus ------- High Alert Combat Kills 106 Follower Combat Kills 381 Entered Garrisons 400 Used RIF Installer 500 Friendly Fire -195 Cogmind --------- Core Integrity 0/850 Matter 111/300 Energy 100/100 System Corruption 7% Temperature Cool (0) Movement Rolling (140) Ox4 Location -6/Garrison Parts ------- > --- POWER (1) -------- (None) > --- PROPULSION (2) --- Armored Treads Wheel > --- UTILITY (10) ----- High-capacity Storage Unit Enhanced Optical Array Advanced Signal Interpreter Improved Propulsion Shielding Layered Medium Armor Plating Improved System Shield Relay Coupler [Grunt] (18) Relay Coupler [Sentry] (15) Corruption Screen > --- WEAPON (2) ------- (None) > --- INVENTORY (20) --- Micro Fission Core Light Antimatter Reactor Improved Medium Treads Improved Medium Treads Wheel Medium Storage Unit High-capacity Storage Unit High-capacity Matter Pod (200) Structural Scanner Improved Sensor Array Advanced Terrain Scanner Reactive Plating Relay Coupler [NC] (26) Relay Coupler [Grunt] (23) Relay Coupler [Sentry] (19) Relay Coupler [Sentry] (25) Remote Datajack Great Axe Peak State ------------ > --- POWER ------------ Fission Core > --- PROPULSION ------- Armored Treads Wheel > --- UTILITY ---------- High-capacity Storage Unit Enhanced Optical Array Advanced Signal Interpreter Improved Propulsion Shielding Layered Medium Armor Plating Improved System Shield Relay Coupler [Grunt] Relay Coupler [Sentry] Corruption Screen > --- WEAPON ----------- Remote Datajack Great Axe > --- INVENTORY -------- Fission Core Micro Fission Core Light Antimatter Reactor Improved Medium Treads Improved Medium Treads Wheel Medium Storage Unit High-capacity Storage Unit High-capacity Matter Pod Structural Scanner Improved Sensor Array Advanced Terrain Scanner Reactive Plating Relay Coupler [NC] Relay Coupler [Grunt] Relay Coupler [Sentry] Relay Coupler [Sentry] Heavy Assault Cannon [Rating: 58] Favorites ----------- Power Light Nuclear Core Engine Ion Engine Power Core Light Nuclear Core Propulsion Wheel Treads Armored Treads Leg Aluminum Leg Wheel Wheel Utility Advanced Targeting Computer Device Improved Sensor Array Storage High-capacity Storage Unit Processor Advanced Targeting Computer Hackware Hacking Suite Protection Improved Propulsion Shielding Weapon Heavy Assault Cannon Energy Gun EM Pulse Gun Energy Cannon Plasma Cannon Ballistic Gun Light Assault Rifle Ballistic Cannon Heavy Assault Cannon Launcher Grenade Launcher Special Weapon Remote Datajack Slashing Weapon Great Axe Build | -11 -10 -10 -10 -9 -8 -7 -7 -7 -6 -6 ------- Run | Jun Mat Min Exi Min Mat Fac Gar Fac Fac Gar Slots Evolved 8 | . . . . . 4 2 . . 2 . Power . | . . . . . . . . . . . Propulsion . | . . . . . . . . . . . Utility 8 | . . . . . 4 2 . . 2 . Weapon . | . . . . . . . . . . . Parts Attached 254 | 6 11 8 2 1 24 66 6 10 109 11 Power 26 | 1 1 1 . . 4 6 2 2 9 . Engine 5 | 1 1 1 . . 2 . . . . . Core 21 | . . . . . 2 6 2 2 9 . Reactor . | . . . . . . . . . . . Propulsion 51 | 2 1 2 . . 6 14 . . 24 2 Treads 21 | . . . . . 3 6 . . 10 2 Leg 3 | 2 1 . . . . . . . . . Wheel 27 | . . 2 . . 3 8 . . 14 . Hover . | . . . . . . . . . . . Flight . | . . . . . . . . . . . Utility 99 | 1 3 1 . . 8 22 2 5 54 3 Device 48 | . 2 . . . 1 10 2 2 31 . Storage 5 | 1 1 1 . . . 1 . . 1 . Processor 11 | . . . . . 6 2 . . 3 . Hackware 6 | . . . . . . . . 1 3 2 Protection 29 | . . . . . 1 9 . 2 16 1 Artifact . | . . . . . . . . . . . Weapon 78 | 2 6 4 2 1 6 24 2 3 22 6 Energy Gun 3 | 2 1 . . . . . . . . . Energy Cannon 4 | . . . . . . 4 . . . . Ballistic Gun 28 | . 3 3 1 1 5 8 . 2 5 . Ballistic Cannon 19 | . . . . . . 7 2 1 7 2 Launcher 6 | . 2 1 1 . 1 1 . . . . Special Weapon 3 | . . . . . . . . . 1 2 Impact Weapon . | . . . . . . . . . . . Slashing Weapon 15 | . . . . . . 4 . . 9 2 Piercing Weapon . | . . . . . . . . . . . Special Melee Weapon . | . . . . . . . . . . . Unidentified Prototypes 2 | . . . . . . 2 . . . . Parts Lost 49 | . . . . . 15 12 1 . 18 3 Power 7 | . . . . . 3 2 1 . . 1 Propulsion 14 | . . . . . 5 5 . . 4 . Utility 16 | . . . . . 2 2 . . 11 1 Weapon 12 | . . . . . 5 3 . . 3 1 Highest Loss Streak 13 | . . . . . 13 4 1 . 6 2 To Critical Strikes 1 | . . . . . . 1 . . . . Average Slot Usage (%) 93 | . 99 100 77 100 82 94 94 92 93 84 Engine 1 | . 14 14 14 14 2 . . . . . Core 5 | . . . . . 6 6 7 7 6 6 Treads 5 | . . . . . 8 6 7 7 5 5 Leg 2 | . 28 24 . . . . . . . . Wheel 7 | . . 3 28 28 9 7 7 7 7 6 Device 10 | . 13 14 14 14 4 5 7 14 15 . Storage 7 | . 14 14 14 14 9 7 7 7 6 6 Processor 25 | . . . . . 23 37 38 30 22 20 Hackware 4 | . . . . . . . . 4 10 16 Protection 5 | . . . . . 5 8 7 2 6 13 Ballistic Gun 4 | . 19 28 6 28 14 3 . 1 . . Ballistic Cannon 2 | . . . . . . 3 6 6 2 2 Slashing Weapon 3 | . . . . . . 2 . . 7 2 Naked Turns . | . . . . . . . . . . . Heaviest Build 81 | 14 19 48 50 48 56 75 71 71 81 72 Greatest Support 46 | 20 20 20 20 20 46 44 10 10 42 20 Greatest Overweight (x) 8 | . . 2 2 2 5 7 7 7 8 7 Average Overweight (x) 4 | . . . 2 2 4 4 6 5 4 5 Largest Inventory Capacity 20 | 8 10 20 20 20 20 20 20 20 20 20 Average Capacity 18 | 6 9 11 20 20 20 20 20 20 20 20 Most Carried 20 | 4 10 12 19 19 20 20 20 20 20 20 Average Carried 17 | 2 8 10 16 17 12 18 19 19 18 17 Final Capacity 20 | 8 10 20 20 20 20 20 20 20 20 20 Final Carried 20 | 4 10 12 17 19 10 20 20 20 17 18 Class Distribution -------------------- 41% | Mutant 18% | Scavenger-Assassin 15% | Scavenger-Skirmisher 6% | Assassin 6% | Commander-Mutant 5% | Skirmisher 4% | Commander-Skirmisher Dominant Class ---------------- Mutant | -10/Materials Mutant | -10/Mines Mutant | -10/Exiles Mutant | -9/Mines Mutant | -8/Materials Mutant | -7/Factory Commander-Mutant | -7/Garrison Commander-Skirmisher | -7/Factory Scavenger-Assassin | -6/Factory Mutant | -6/Garrison Resources | -11 -10 -10 -10 -9 -8 -7 -7 -7 -6 -6 ----------- Run | Jun Mat Min Exi Min Mat Fac Gar Fac Fac Gar Matter Collected 5024 | 183 308 188 . 45 295 1470 26 512 1882 115 Remotely . | . . . . . . . . . . . Salvage Created 5089 | . 424 166 . . 449 1782 9 210 2002 47 Parts 281 | . 33 12 . . 20 77 . 10 125 4 Haulers Intercepted 6 | . 1 . . . . 2 . 1 2 . Recyclers Shooed 7 | . 3 . . . . 3 . . 1 . Parts Field Recycled . | . . . . . . . . . . . Retrieved Matter . | . . . . . . . . . . . Parts Self-Destructed . | . . . . . . . . . . . Prevented . | . . . . . . . . . . . Kills | -11 -10 -10 -10 -9 -8 -7 -7 -7 -6 -6 ------- Run | Jun Mat Min Exi Min Mat Fac Gar Fac Fac Gar Combat Hostiles Destroyed 78 | . 11 4 . . 8 24 . . 30 1 Melee 12 | . . . . . . 2 . . 10 . Guns 25 | . 7 2 . . 7 7 . . 2 . Cannons 33 | . . . . . . 14 . . 18 1 AOE 7 | . 4 2 . . 1 . . . . . Classes Destroyed 15 | . 5 1 . . 2 3 . 1 3 . Worker 15 | . . 2 . . 1 7 . . 5 . Builder 7 | . . . . . . 2 . . 5 . Tunneler 2 | . . . . . . . . . 2 . Hauler 6 | . 1 . . . . 2 . 1 2 . Recycler 14 | . 1 1 . . 1 6 . 2 3 . Operator 1 | . . . . . . . . 1 . . Watcher 5 | . 1 . . . . 1 . . 3 . Swarmer 19 | . 6 3 . . . 7 . . 3 . Cutter 3 | . . . . . . . . . 3 . Grunt 24 | . 5 1 . . 3 5 . 1 8 1 Duelist 3 | . . . . . . 2 . . 1 . Sentry 9 | . . . . . 2 5 . . 2 . Specialist 3 | . . . . . . . . . 3 . Hunter 6 | . . . . . 3 2 . . 1 . Programmer 12 | . . . . . . 3 . . 9 . Best Kill Streak 5 | . 3 2 . . 4 4 . 1 5 1 Combat Bots Only 4 | . 3 2 . . 3 4 . . 4 1 Max Kills in Single Turn 3 | . 3 1 . . 2 1 . 1 1 1 Gunslinging . | . . . . . . . . . . . Exploded 3 | . 3 1 . . 1 . . . . . Melee 1 | . . . . . . 1 . . 1 . Uniques/NPCs Destroyed . | . . . . . . . . . . . Combat | -11 -10 -10 -10 -9 -8 -7 -7 -7 -6 -6 -------- Run | Jun Mat Min Exi Min Mat Fac Gar Fac Fac Gar Damage Taken 9062 | . 227 278 . . 1769 2348 79 69 3678 614 Core 1755 | . 66 32 . . 411 386 . . 778 82 Absorbed by Shields 156 | . 37 . . . 119 . . . . . Redirected to Shielding 311 | . . . . . . 6 . . 279 26 Regen/Repaired (Parts) 574 | . . . . . 71 246 . . 257 . Core Remaining (%) 57 | 100 . . . 60 25 . . 44 . . Volleys Fired 346 | . 36 25 . 3 65 94 5 19 92 7 Largest 2 | . 2 2 . 2 2 2 1 2 2 1 Hottest 128 | . 80 40 . 40 40 128 60 60 76 60 Shots Fired 544 | . 70 48 . 6 114 162 5 21 111 7 Gun 322 | . 67 46 . 6 113 60 . 2 28 . Cannon 210 | . . . . . . 101 5 19 81 4 Launcher 7 | . 3 2 . . 1 1 . . . . Special 5 | . . . . . . . . . 2 3 Kinetic 484 | . 59 46 . 6 113 121 5 21 109 4 Thermal 40 | . . . . . . 40 . . . . Explosive 7 | . 3 2 . . 1 1 . . . . Electromagnetic 8 | . 8 . . . . . . . . . Robot Hit Streak 51 | . 8 6 . 4 13 51 3 5 20 3 Robot Miss Streak 7 | . 7 2 . 1 2 2 . 2 2 1 Penetration Max . | . . . . . . . . . . . Secondary Targets 1 | . . . . . 1 . . . . . Max Gunslinging Chain 1 | . . . . . 1 . . . . . Shots Hit Robots 441 | . 33 29 . 5 87 133 1 7 141 5 Core Hits 194 | . 23 12 . 2 37 55 1 5 58 1 Critical Kills 1 | . . . . . . 1 . . . . Critical Parts Destroyed 2 | . 1 . . . 1 . . . . . Critical Strikes 15 | . 1 . . . 1 1 . 1 11 . Meltdown 1 | . . . . . . 1 . . . . Destroy 2 | . 1 . . . 1 . . . . . Blast 6 | . . . . . . . . 1 5 . Sever 6 | . . . . . . . . . 6 . Melee Attacks 195 | . . . . . . 49 . . 145 1 Impact . | . . . . . . . . . . . Slashing 195 | . . . . . . 49 . . 145 1 Piercing . | . . . . . . . . . . . Sneak Attacks 25 | . . . . . . 10 . . 15 . Combat Hostiles . | . . . . . . . . . . . Follow-up Attacks 7 | . . . . . . . . . 7 . Damage Inflicted 12436 | . 593 496 . 34 939 3875 43 373 5992 91 Guns 2697 | . 377 290 . 34 708 793 . 36 459 . Cannons 4739 | . . . . . . 1717 43 337 2551 91 Explosions 739 | . 216 206 . . 231 26 . . 60 . Melee 4261 | . . . . . . 1339 . . 2922 . Ramming . | . . . . . . . . . . . Kinetic 6468 | . 312 290 . 34 708 1607 43 373 3010 91 Thermal 903 | . . . . . . 903 . . . . Explosive 679 | . 216 206 . . 231 26 . . . . Electromagnetic 125 | . 65 . . . . . . . 60 . Impact . | . . . . . . . . . . . Slashing 4261 | . . . . . . 1339 . . 2922 . Piercing . | . . . . . . . . . . . Highest Corruption 7 | . 1 1 1 1 . 2 2 2 7 7 Average Corruption 3 | . 1 1 1 1 . 1 2 2 6 7 Corruption Purged . | . . . . . . . . . . . Corruption Blocked 13 | . . . . . . . . . 13 . Effects 180 | . 2 4 . . . 38 24 11 96 5 Message Errors 33 | . 1 1 . . . 7 4 1 18 1 Matter Fused 48 | . . . . . . 11 9 5 23 . Heat Flow Errors 23 | . . 1 . . . 5 4 1 10 2 Energy Discharges 35 | . . 1 . . . 6 1 2 25 . Parts Rejected 1 | . . . . . . . . . . 1 Data Loss (minor) 26 | . . 1 . . . 5 5 . 15 . Data Loss (major) 6 | . . . . . . 2 1 1 1 1 Misfires 4 | . 1 . . . . 1 . 1 1 . Alerts 2 | . . . . . . . . . 2 . Weapon Failures 2 | . . . . . . 1 . . 1 . Overload Shots . | . . . . . . . . . . . Overflow Damage 848 | . . 23 . . . 341 . 39 445 . Projectiles 236 | . . . . . . 13 . 39 184 . Explosions 23 | . . 23 . . . . . . . . Melee 589 | . . . . . . 328 . . 261 . Knockbacks 38 | . . . . . . 12 . 3 23 . Impact . | . . . . . . . . . . . Kinetic 33 | . . . . . . 11 . 2 20 . Secondary 5 | . . . . . . 1 . 1 3 . Self-Inflicted Damage 137 | . . . . . 121 . . . 16 . Shots 3 | . . . . . 2 . . . 1 . Rammed . | . . . . . . . . . . . Targets Rammed 1 | . 1 . . . . . . . . . Kicked 1 | . 1 . . . . . . . . . Crushed . | . . . . . . . . . . . Highest Temperature 305 | . 88 191 . . 13 211 256 66 293 305 Average Temperature 62 | . 28 52 . . 3 67 114 29 53 138 Received Heat Transfer 1422 | . 88 117 . . 425 291 . . 456 45 Siege Activations . | . . . . . . . . . . . Robots Corrupted . | . . . . . . . . . . . Combat Hostiles . | . . . . . . . . . . . Parts Fried 1 | . . . . . . . . . 1 . Impact Corruptions . | . . . . . . . . . . . Robots Melted 1 | . . . . . . 1 . . . . Combat Hostiles 1 | . . . . . . 1 . . . . Parts Melted 3 | . . . . . . 3 . . . . Heat Transferred 1750 | . . . . . . 1750 . . . . Parts Sabotaged . | . . . . . . . . . . . Parts Stolen . | . . . . . . . . . . . Parts Stripped . | . . . . . . . . . . . Power Chain Reactions . | . . . . . . . . . . . Missiles Intercepted . | . . . . . . . . . . . Alert | -11 -10 -10 -10 -9 -8 -7 -7 -7 -6 -6 ------- Run | Jun Mat Min Exi Min Mat Fac Gar Fac Fac Gar Peak Influence 766 | . 211 160 . . 142 423 766 482 602 482 Initial 421 | . . 27 . . . 13 275 401 172 421 Average 218 | . 96 114 . . 53 152 525 389 220 449 Maximum Alert Level 3 | . 1 . . . . 2 3 2 2 2 Low Security (%) 50 | 100 95 100 . 100 100 68 . . 38 . Level 1 33 | . 4 . . . . 29 4 49 55 . Level 2 15 | . . . . . . 1 82 50 5 100 Level 3 1 | . . . . . . . 13 . . . Level 4 . | . . . . . . . . . . . Level 5 . | . . . . . . . . . . . High Security . | . . . . . . . . . . . Max Security . | . . . . . . . . . . . Squads Dispatched 32 | . 2 . . . 1 6 . 2 21 . Investigation 1 | . 1 . . . . . . . . . Extermination 14 | . . . . . . 3 . 1 10 . Reinforcement 16 | . 1 . . . 1 3 . 1 10 . Assault . | . . . . . . . . . . . Garrison 1 | . . . . . . . . . 1 . Intercept . | . . . . . . . . . . . Searches Triggered . | . . . . . . . . . . . Construction Impeded 1 | . . . . . . . . . 1 . Haulers Reinforced 2 | . . . . . . 1 . . 1 . Active Scanning Responses . | . . . . . . . . . . . Cargo Convoy Interrupts 1 | . . . . . . . . . 1 . Stealth | -11 -10 -10 -10 -9 -8 -7 -7 -7 -6 -6 --------- Run | Jun Mat Min Exi Min Mat Fac Gar Fac Fac Gar Distress Signals 9 | . 3 . . . 3 2 . . 1 . Communications Jammed . | . . . . . . . . . . . Distress Signals . | . . . . . . . . . . . Times Spotted 149 | . 19 5 . . 30 38 . 2 51 4 Peak Tracking Total 7 | . 3 3 . . 7 4 . 1 4 3 Tactical Retreats 10 | . . 1 . . 1 3 . . 5 . Traps | -11 -10 -10 -10 -9 -8 -7 -7 -7 -6 -6 ------- Run | Jun Mat Min Exi Min Mat Fac Gar Fac Fac Gar Traps Triggered 10 | . 2 . . . . 1 2 1 4 . Indirectly . | . . . . . . . . . . . Trap Hack Attempts . | . . . . . . . . . . . Triggered . | . . . . . . . . . . . Disarmed . | . . . . . . . . . . . Reprogrammed . | . . . . . . . . . . . Reused . | . . . . . . . . . . . Traps Extracted . | . . . . . . . . . . . Installed 1 | . . . . . . . 1 . . . Triggered 2 | . . . . . . . . . 2 . Exploded 1 | . . . . . 1 . . . . . Machines | -11 -10 -10 -10 -9 -8 -7 -7 -7 -6 -6 ---------- Run | Jun Mat Min Exi Min Mat Fac Gar Fac Fac Gar Machines Disabled 10 | . . . . . 1 1 4 1 2 1 Max in Single Turn 1 | . . . . . 1 1 1 . 1 1 Garrison Relay 4 | . . . . . . . 3 . . 1 Machines Repaired . | . . . . . . . . . . . Machines Sabotaged . | . . . . . . . . . . . Overloaded Fab Kills . | . . . . . . . . . . . Hacking | -11 -10 -10 -10 -9 -8 -7 -7 -7 -6 -6 --------- Run | Jun Mat Min Exi Min Mat Fac Gar Fac Fac Gar Machines Accessed 38 | . 5 1 1 . 3 14 . 2 12 . Terminals 19 | . 4 . . . 1 4 . 1 9 . Fabricators 2 | . . . . . . 2 . . . . Repair Stations 4 | . . . . . 1 2 . . 1 . Recycling Units 7 | . 1 . . . 1 4 . . 1 . Scanalyzers 2 | . . . . . . 1 . 1 . . Garrison Access 2 | . . . . . . 1 . . 1 . Total Hacks 88 | . 16 1 1 . 6 30 . 6 28 . Successful 48 | . 5 1 1 . 4 15 . 5 17 . Failed 40 | . 11 . . . 2 15 . 1 11 . Catastrophic 3 | . . . . . . 2 . . 1 . Database Lockouts . | . . . . . . . . . . . Manual 9 | . . . . . 2 1 . . 6 . Terminals 46 | . 13 . . . 3 8 . 2 20 . Fabricators 4 | . . . . . . 4 . . . . Repair Stations 14 | . . . . . 2 8 . . 4 . Recycling Units 12 | . 3 . . . 1 5 . . 3 . Scanalyzers 7 | . . . . . . 3 . 4 . . Garrison Access 3 | . . . . . . 2 . . 1 . Terminal Hacks 17 | . 3 1 1 . 1 1 . 1 9 . Record 2 | . . . 1 . . . . . 1 . Prototype ID Bank 1 | . . . . . . . . . 1 . Open Door 1 | . . 1 . . . . . . . . Level Access Points 1 | . . . . . . . . 1 . . Emergency Access Points 1 | . . . . . . . . . 1 . Locate Traps 3 | . . . . . . . . . 3 . Patrol Status 1 | . 1 . . . . . . . . . Hauler Manifests 3 | . 1 . . . . . . . 2 . Registered Components 1 | . . . . . . . . . 1 . Zone Layout 3 | . 1 . . . 1 1 . . . . Fabricator Hacks 2 | . . . . . . 2 . . . . Network Status 2 | . . . . . . 2 . . . . Repair Station Hacks 12 | . . . . . 2 6 . . 4 . Scan Component 6 | . . . . . 1 3 . . 2 . Repair 6 | . . . . . 1 3 . . 2 . Recycling Unit Hacks 5 | . 2 . . . 1 1 . . 1 . Process 1 | . 1 . . . . . . . . . Retrieve Matter 1 | . 1 . . . . . . . . . Retrieve Components 3 | . . . . . 1 1 . . 1 . Scanalyzer 7 | . . . . . . 3 . 4 . . Insert Component 4 | . . . . . . 2 . 2 . . Analyze 3 | . . . . . . 1 . 2 . . Garrison Access Hacks 2 | . . . . . . 1 . . 1 . Unlock Access 2 | . . . . . . 1 . . 1 . Unauthorized Hacks 3 | . . . . . . 1 . . 2 . Terminals 3 | . . . . . . 1 . . 2 . Assimilate 1 | . . . . . . . . . 1 . Botnet 2 | . . . . . . 1 . . 1 . Fabricators . | . . . . . . . . . . . Repair Stations . | . . . . . . . . . . . Recycling Units . | . . . . . . . . . . . Scanalyzers . | . . . . . . . . . . . Garrison Access . | . . . . . . . . . . . Data Cores Recovered 1 | . . . . . . . . 1 . . Used . | . . . . . . . . . . . Hacking Detections 31 | . 4 . . . 2 13 . 2 10 . Full Trace Events . | . . . . . . . . . . . Feedback Events . | . . . . . . . . . . . Feedback Blocked . | . . . . . . . . . . . Robot Schematics Acquired . | . . . . . . . . . . . Robots Built . | . . . . . . . . . . . Authchips . | . . . . . . . . . . . Time . | . . . . . . . . . . . Total Robot Build Rating . | . . . . . . . . . . . Part Schematics Acquired 2 | . . . . . . 1 . 1 . . Parts Built . | . . . . . . . . . . . Authchips . | . . . . . . . . . . . Time . | . . . . . . . . . . . Total Part Build Rating . | . . . . . . . . . . . Parts Repaired 6 | . . . . . 1 3 . . 2 . Time 222 | . . . . . 26 114 . . 82 . Parts Recycled . | . . . . . . . . . . . Recycled Matter 24 | . 24 . . . . . . . . . Retrieved Matter 24 | . 24 . . . . . . . . . Retrieved Components 14 | . . . . . 1 10 . . 3 . Parts Scanalyzed 2 | . . . . . . 1 . 1 . . Part Schematics Acquired 2 | . . . . . . 1 . 1 . . Parts Damaged . | . . . . . . . . . . . Bothacking | -11 -10 -10 -10 -9 -8 -7 -7 -7 -6 -6 ------------ Run | Jun Mat Min Exi Min Mat Fac Gar Fac Fac Gar Used RIF Installer 1 | . . . . . . . 1 . . . Robots Hacked 3 | . . . . . . . . . 1 2 Non-combat 1 | . . . . . . . . . 1 . Combat 2 | . . . . . . . . . . 2 Robot Hacks Applied 3 | . . . . . . . . . 1 2 map_route 1 | . . . . . . . . . 1 . overwrite_iff 1 | . . . . . . . . . . 1 formatsys_high 1 | . . . . . . . . . . 1 Relay Couplers Released 16 | . . . . . . . 12 . . 4 Machine Destruction 16 | . . . . . . . 12 . . 4 Attached 4 | . . . . . . . . . 2 2 Fabnet Peak Effective % . | . . . . . . . . . . . Robots Rewired 9 | . . . . . . . 9 . . . Allies Hacked . | . . . . . . . . . . . Hacks Repelled . | . . . . . . . . . . . Allies | -11 -10 -10 -10 -9 -8 -7 -7 -7 -6 -6 -------- Run | Jun Mat Min Exi Min Mat Fac Gar Fac Fac Gar Total Allies 15 | . . 1 . . . . 11 . 1 2 Largest Group 10 | . . 1 1 . . . 10 10 5 1 Highest-Rated Group 265 | . . 31 31 . . . 265 265 178 32 Highest-Rated Ally 62 | . . 31 31 . . . 62 62 59 32 Total Orders . | . . . . . . . . . . . Ally Attacks 36 | . . . . . . . 2 19 13 2 Total Damage 1044 | . . . . . . . 110 455 396 83 Kills 14 | . . . . . . . 1 7 6 . Allies Corrupted 1 | . . . . . . . . . 1 . Allies Melted . | . . . . . . . . . . . Intel | -11 -10 -10 -10 -9 -8 -7 -7 -7 -6 -6 ------- Run | Jun Mat Min Exi Min Mat Fac Gar Fac Fac Gar Robot Analysis Total . | . . . . . . . . . . . Derelict Logs Recovered . | . . . . . . . . . . . Drone Launches . | . . . . . . . . . . . Drone Recoveries . | . . . . . . . . . . . Exploration | -11 -10 -10 -10 -9 -8 -7 -7 -7 -6 -6 ------------- Run | Jun Mat Min Exi Min Mat Fac Gar Fac Fac Gar Turns Passed 12366 | 63 864 427 172 78 896 3071 1087 899 4645 164 Spaces Moved 6631 | 43 601 281 150 61 461 1538 572 501 2358 65 Core 5 | 5 . . . . . . . . . . Treads 253 | . . . . . 10 144 . . 99 . Legs 870 | 38 601 231 . . . . . . . . Wheels 5503 | . . 50 150 61 451 1394 572 501 2259 65 Hover . | . . . . . . . . . . . Flight . | . . . . . . . . . . . Fastest Speed 50 | 50 120 80 110 110 110 110 155 155 110 125 Average Speed 150 | 111 120 118 110 110 147 155 172 157 157 163 Slowest Speed 410 | 120 120 120 110 110 320 305 185 185 410 185 Overloaded Moves . | . . . . . . . . . . . Propulsion Burnouts . | . . . . . . . . . . . Robots Hopped . | . . . . . . . . . . . Cave-ins Triggered . | . . . . . . . . . . . Exploration Rate (%) 42 | 3 95 55 49 16 39 39 83 23 57 5 Regions Visited 10 Branch Regions 3 Pre-discovered Areas 2 | . . . 1 1 . . . . . . Known Exits Taken 3 | . . . . . . 1 . 1 1 . Unknown Exits Taken 6 | 1 1 1 1 1 1 . . . . . Scrap Searched 3 | . . 1 . 2 . . . . . . Spaces Dug 111 | . . . . . . 32 . 11 68 . Terrain Destroyed 178 | . 12 3 . . 28 34 . 12 87 2 Melee 74 | . . . . . . 24 . . 50 . Projectile 61 | . . . . . . 10 . 12 37 2 AOE 43 | . 12 3 . . 28 . . . . . Terrain Rammed . | . . . . . . . . . . . Walls Destroyed . | . . . . . . . . . . . Machines Disabled . | . . . . . . . . . . . Actions | -11 -10 -10 -10 -9 -8 -7 -7 -7 -6 -6 --------- Run | Jun Mat Min Exi Min Mat Fac Gar Fac Fac Gar Total 8096 | 55 680 333 158 66 575 1958 668 584 2904 115 Wait 424 | 3 13 8 . . 18 152 5 40 164 21 Move 6621 | 42 600 280 149 60 460 1537 570 500 2358 65 Hop . | . . . . . . . . . . . Pick Up 81 | 4 10 5 5 2 2 24 6 5 15 3 Fast Attach 78 | 6 3 2 . . 12 23 3 4 23 2 Attach 75 | . . . 2 . 10 17 1 3 35 7 Detach 59 | . . 1 2 . 4 13 1 4 28 6 Swap 101 | . 8 6 . 1 2 26 2 3 51 2 Drop 69 | . 9 6 . . 2 23 8 6 14 1 Fire 346 | . 36 25 . 3 65 94 5 19 92 7 Melee 174 | . . . . . . 49 . . 124 1 Ram . | . . . . . . . . . . . Kick 1 | . 1 . . . . . . . . . Crush . | . . . . . . . . . . . Escape Stasis . | . . . . . . . . . . . Rewire 66 | . . . . . . . 66 . . . Trap 1 | . . . . . . . 1 . . . Miscellaneous . | . . . . . . . . . . . Route ------- -11/Junkyard -10/Materials (discovered 5 exits: [*Mat x3] / *Min x2) -10/Mines (discovered 2 exits: [*Mat] / *Exi) -10/Exiles -9/Mines (discovered 2 exits: *Mat x2) -8/Materials (discovered 2 exits: *Fac / [*Sto]) -7/Factory (discovered 4 exits: *Fac / *Low x2 / Gar) -7/Garrison (discovered 3 exits: *Fac x3) -7/Factory (discovered 4 exits: *Fac x4) -6/Factory (discovered 4 exits: [*Fac x2] / [*Ext] / Gar) -6/Garrison History --------- Turn | Location | Event 3 | -11/Junkyard | Discovered new exit (range 16) 64 | -11/Junkyard | Entered Materials 237 | -10/Materials | Discovered new exit (range 7) 246 | -10/Materials | Discovered new exit (range 18) 333 | -10/Materials | Build established: Mutant 334 | -10/Materials | Discovered new exit (range 15) 558 | -10/Materials | Discovered new exit (range 5) 697 | -10/Materials | Discovered new exit (range 16) 928 | -10/Materials | Entered Mines 1060 | -10/Mines | Discovered new exit (range 14) 1115 | -10/Mines | Found the Drone Emporium 1175 | -10/Mines | Deemed a non-threat by the Exiles lab entrance 1175 | -10/Mines | Discovered new exit (range 5) 1247 | -10/Mines | Received a Mining Laser from a helpful Derelict 1355 | -10/Mines | Entered Exiles 1355 | -10/Exiles | Accompanied by 1 ally 1389 | -10/Exiles | Met 8R-AWN 1408 | -10/Exiles | Met EX-HEX 1452 | -10/Exiles | Met EX-DEC 1457 | -10/Exiles | Learned location of Zion (-7) 1512 | -10/Exiles | Discovered new exit (range 14) 1527 | -10/Exiles | Entered Mines 1528 | -9/Mines | Learned location of Storage (-8) 1539 | -9/Mines | Discovered new exit (range 6) 1570 | -9/Mines | Discovered new exit (range 5) 1605 | -9/Mines | Entered Materials 1605 | -8/Materials | Evolved 4 slots: Utility x4 1817 | -8/Materials | Repaired Assault Rifle 1863 | -8/Materials | Core integrity fell below 50% 1944 | -8/Materials | Lost 13 parts (3p4n2u4w) 1968 | -8/Materials | Discovered new exit (range 12) 2367 | -8/Materials | Discovered new exit (range 19) 2501 | -8/Materials | Entered Factory 2501 | -7/Factory | Evolved 2 slots: Utility x2 2912 | -7/Factory | Repaired Wheel 3603 | -7/Factory | Discovered new exit (range 9) 3799 | -7/Factory | Identified exit to Lower Caves 3817 | -7/Factory | Lost 4 parts (1p1n1u1w) 4309 | -7/Factory | Discovered exit to Lower Caves (range 7) 4542 | -7/Factory | Discovered new exit (range 19) 4576 | -7/Factory | Identified exit to Factory 5057 | -7/Factory | Core integrity fell below 50% 5410 | -7/Factory | Repaired Mic. Nuclear Core 5455 | -7/Factory | Repaired Imp. Medium Armor Plating 5565 | -7/Factory | Identified exit to Garrison 5572 | -7/Factory | Entered Garrison 5572 | -7/Garrison | Discovered recently destroyed garrison 5618 | -7/Garrison | Garrison Relay disabled 5912 | -7/Garrison | Garrison Relay disabled 6037 | -7/Garrison | Discovered new exit (range 13) 6055 | -7/Garrison | Identified exit to Factory 6170 | -7/Garrison | Build established: Commander-Mutant 6228 | -7/Garrison | Found embedded Infiltrators 6388 | -7/Garrison | Garrison Relay disabled 6446 | -7/Garrison | Discovered exit to Factory (range 9) 6570 | -7/Garrison | Discovered exit to Factory (range 12) 6622 | -7/Garrison | Installed Relay Interface Framework 6659 | -7/Garrison | Entered Factory 6659 | -7/Factory | Accompanied by 10 allies 6910 | -7/Factory | Build established: Commander-Skirmisher 7480 | -7/Factory | Build established: Scavenger-Skirmisher 7558 | -7/Factory | Entered another Factory area 7558 | -6/Factory | Accompanied by 5 allies 7558 | -6/Factory | Evolved 2 slots: Utility x2 8465 | -6/Factory | P-60 Hacker assimilated allied Administrator 5a 8571 | -6/Factory | Cargo convoy interrupted 8848 | -6/Factory | Discovered new exit (range 9) 8944 | -6/Factory | Lost 6 parts (1n4u1w) 9644 | -6/Factory | Discovered new exit (range 12) 9648 | -6/Factory | Core integrity fell below 50% 10091 | -6/Factory | Build established: Scavenger-Assassin 11043 | -6/Factory | Discovered new exit (range 19) 11331 | -6/Factory | Lost 6 parts (1n4u1w) 11605 | -6/Factory | Build established: Scavenger-Skirmisher 11883 | -6/Factory | Repaired Great Axe 11928 | -6/Factory | Repaired Hvy. Assault Cannon 11931 | -6/Factory | Core integrity fell below 20% 12138 | -6/Factory | Garrison activated, responded to threat 12203 | -6/Factory | Identified exit to Garrison 12203 | -6/Factory | Entered Garrison 12220 | -6/Garrison | Triggered checkpoint 12281 | -6/Garrison | Garrison Relay disabled 12367 | -6/Garrison | Destroyed by H-66 Slayer with Gauss Rifle Last Messages --------------- 12330_ QQ9N 5ZSIPU5O ZILK&C 12331_ Slug penetrates Soldier 5a. 12332_ Soldier 5a suffers critical hit (Destroy). 12332_ Soldier 5a destroyed. 12332_ Acquired 57 matter. 12345_ Slug penetrates Wall. 12348_ System corrupted: Arm. Treads rejected. 12348_ Jacked Y-54 Guardian... >>overwrite_iff Rewriting IFF filter. 12348_ Penetrated by Slug. 12349_ Acquired Arm. Treads. 12356_ Slug penetrates Wall. 12358_ Slug penetrates H-66 Slayer. 12361_ Penetrated by Slug. 12363_ Hvy. Assault Cannon destroyed. 12364_ Penetrated by Slug. 12364_ Fission Core destroyed. 12366_ Acquired 8 matter. 12366_ Penetrated by Slug. Map ----- +----------------------------------------------------+ | ????????????????????????????????????????????????? | | ????????????????????????????????????????????????? | | ????????????????????????????????????????????????? | | ????????????????????????????????????????????????? | | ????????????????????????????????????????????????? | | ????????????????????????????????????????????????? | | ????????????????????????????????????????????????? | | ????????????????????????????????????????????????? | | ????????????????????????????????????????????????? | | ????????????????????????????????????????????????? | | ???????????????????????###??????????????????????? | | ???????????????????????!!!??????????????????????? | | ??????????????????????? ??????????????????????? | | ??????????????????????? ??????????????????????? | | ??????????????????????# ??????????????????????? | | ??????????????????????# #??????????????????????? | | ??????????????????????#+;#??????????????????????? | | ??????????????????????# ??????????????????????? | | ??????????????????????# ??????????????????????? | | ??????????????????????# #??????????????????????? | | ??????????????????????# #??????????????????????? | | ??????????????????????#!!#??????????????????????? | | ??????????????????????#%=#??????????????????????? | | ??????????????????????#=[#??????????????????????? | | ?????????????????????## #??????????????????????? | | ?????????????????????#;h@#??????????????????????? | | ?????????????????????## h#??????????????????????? | | ??????????????????????# ###????????????????????? | | ??????????????????????# #????????????????????? | | ??????????????????????# #????????????????????? | | ??????????????????????# #????????????????????? | | ??????????????????????# ###????????????????????? | | ?????????????????????## #??????????????????????? | | ?????????????????#####; *#??????????????????????? | | ?????????????????# + #??????????????????????? | | ?????????????????# #### #??????????????????????? | | ????????????????#####?# #??????????????????????? | | ????????????????# #?# #??????????????????????? | | ??????????####### ###[ #??????????????????????? | | ??????????# = !#??????????????????????? | | ??????????# = #??????????????????????? | | ??????????## ###########??????????????????????? | | ??????????#""" "#???????????????????????????????? | | ??????????#######???????????????????????????????? | | ????????????????????????????????????????????????? | | ????????????????????????????????????????????????? | | ????????????????????????????????????????????????? | | ????????????????????????????????????????????????? | | ????????????????????????????????????????????????? | | ????????????????????????????????????????????????? | +----------------------------------------------------+ Best States ------------- Heat Dissipation 64 Energy Generation 18 Energy Capacity 310 Matter Stores 300 Matter Capacity 300 Sight Range 22 Robot Scan Range 15 Terrain Scan Range 20 Terrain Scan Density 85 EM Shielding 2 Corruption Block 8 Armor Coverage 375 Resistance: KI 20 Resistance: EM 15 Power Shielding 66 Propulsion Shielding 66 Evasion (%) 55 Targeting Accuracy 29 Recoil Reduction 2 Offensive Hacking 10 Defensive Hacking 12 Relay Coupler Types 2 Relay Coupler Value 40 Item Schematics ----------------- Hacking Suite | -7/Factory | Scanalyzed Hvy. Assault Cannon | -7/Factory | Scanalyzed Robot Schematics ------------------ None Fabricated ------------ Nothing Alien Tech Used ----------------- None Achievements -------------- None Challenges ------------ None Game ------ Seed BladeTransmissionChainsword Manual? 0 Play Time 02:22:39 Cumulative 386.9 hours Start 2023.06.05 @ 11:27:23 End 2023.06.07 @ 21:40:08 Sessions 1 Manual Loads 0 Difficulty Rogue Special Mode None Game No. 163 Rogue 140 Adventurer 23 Explorer 0 Win Type - Total 1 Types 1/0/0/0/0/0/0/0/0 Lore% 46 Gallery% 58 Achievement% 45 Wizard Run 0 Options --------- ASCII 0 Keyboard 1 Movement Vi Keybinds 0 Fullscreen 1 Font 12/Tallcaps Map View 83x54 Tactical HUD 1 Map Filters NONE Filters NONE Steam 0 RUN: 47fd7471-6bed-4c76-8a0b-9e33cd27637f